fUST/lending_fUST_20240322
["ID","MTS","AMOUNT","RATE_DAILY","PERIOD"]
[320037372,1711103446223,-151.0,0.00027397,2]
[320037373,1711103446232,-500.0,0.00027397,2]
[320037375,1711103446242,-500.0,0.00027397,2]
[320037377,1711103446251,-500.0,0.00027397,2]
[320037378,1711103446260,-500.73234157,0.00027397,2]
[320037380,1711103446269,-500.0,0.00027397,2]
[320037381,1711103446278,-500.22586763,0.00027397,2]
[320037383,1711103446287,-604.99,0.00027397,2]
[320037385,1711103446297,-248.951463,0.00027397,2]
[320037387,1711103446306,-248.951463,0.00027397,2]
[320037389,1711103446315,-248.951463,0.00027397,2]
[320037391,1711103446325,-248.951463,0.00027397,2]
[320037393,1711103446334,-501.34505652,0.00027397,2]
[320037395,1711103446343,-248.951463,0.00027397,2]
[320037397,1711103446354,-248.951463,0.00027397,2]
[320037399,1711103446364,-248.951463,0.00027397,2]
[320037400,1711103446375,-248.951463,0.00027397,2]
[320037401,1711103446385,-500.0,0.00027397,2]
[320037402,1711103446395,-500.0,0.00027397,2]
[320037404,1711103446404,-502.32996417,0.00027397,2]
[320037406,1711103446413,-501.00665515,0.00027397,2]
[320037408,1711103446423,-500.0,0.00027397,2]
[320037410,1711103446433,-500.0,0.00027397,2]
[320037412,1711103446442,-1037.38,0.00027397,2]
[320037414,1711103446452,-1940.7,0.00027397,2]
[320037416,1711103446461,-1940.7,0.00027397,2]
[320037418,1711103446471,-1940.7,0.00027397,2]
[320037420,1711103446480,-1940.7,0.00027397,2]
[320037422,1711103446488,-665.45,0.00027397,2]
[320037424,1711103446498,-500.0,0.00027397,2]
[320037426,1711103446507,-500.0,0.00027397,2]
[320037428,1711103446516,-500.0,0.00027397,2]
[320037430,1711103446525,-676.48,0.00027397,2]
[320037432,1711103446534,-500.0,0.00027397,2]
[320037434,1711103446543,-500.0,0.00027397,2]
[320037435,1711103446552,-3009.95,0.00027397,2]
[320037437,1711103446561,-2142.93,0.00027397,2]
[320037440,1711103446571,-500.0,0.00027397,2]
[320037441,1711103446581,-438.5477737,0.00027397,2]
[320037443,1711103446590,-500.0,0.00027397,2]
[320037458,1711103446719,-500.0,0.00027397,2]
[320037460,1711103446729,-500.0,0.00027397,2]
[320037462,1711103446739,-500.0,0.00027397,2]
[320037464,1711103446748,-500.0,0.00027397,2]
[320037466,1711103446757,-500.0,0.00027397,2]
[320037468,1711103446766,-622.75,0.00027397,2]
[320037470,1711103446775,-502.36879751,0.00027397,2]
[320037472,1711103446785,-501.97414736,0.00027397,2]
[320037474,1711103446794,-500.0,0.00027397,2]
[320037476,1711103446803,-501.99369271,0.00027397,2]
[320037478,1711103446813,-9762.29,0.00027397,2]
[320037480,1711103446822,-502.45,0.00027397,2]
[320037482,1711103446832,-668.14,0.00027397,2]
[320037484,1711103446841,-502.73,0.00027397,2]
[320037486,1711103446850,-500.0,0.00027397,2]
[320037488,1711103446859,-3818.07,0.00027397,2]
[320037490,1711103446868,-502.24964605,0.00027397,2]
[320037492,1711103446882,-1857.83723698,0.00027397,2]
[320037494,1711103446897,-1530.23276302,0.00027397,2]
[320037496,1711103446907,-500.0,0.00027397,2]
[320037498,1711103446916,-198.579749,0.00027397,2]
[320037500,1711103446925,-500.0,0.00027397,2]
[320037502,1711103446935,-155.406592,0.00027397,2]
[320037504,1711103446944,-155.406592,0.00027397,2]
[320037506,1711103446953,-155.406592,0.00027397,2]
[320037507,1711103446962,-155.406592,0.00027397,2]
[320037509,1711103446971,-155.406592,0.00027397,2]
[320037511,1711103446981,-155.406592,0.00027397,2]
[320037513,1711103446990,-155.406592,0.00027397,2]
[320037515,1711103446999,-500.0,0.00027397,2]
[320037517,1711103447009,-155.406592,0.00027397,2]
[320037519,1711103447018,-155.406592,0.00027397,2]
[320037521,1711103447028,-155.406592,0.00027397,2]
[320037523,1711103447037,-500.0,0.00027397,2]
[320037525,1711103447049,-2669.94,0.00027397,2]
[320037527,1711103447058,-3549.09,0.00027397,2]
[320037528,1711103447067,-500.0,0.00027397,2]
[320037530,1711103447077,-500.0,0.00027397,2]
[320037532,1711103447087,-812.09,0.00027397,2]
[320037534,1711103447096,-1043.02,0.00027397,2]
[320037536,1711103447105,-511.83372254,0.00027397,2]
[320037538,1711103447114,-3066.04,0.00027397,2]
[320037540,1711103447127,-2315.32,0.00027397,2]
[320037542,1711103447136,-514.91,0.00027397,2]
[320037544,1711103447146,-500.0,0.00027397,2]
[320037546,1711103447155,-500.0,0.00027397,2]
[320037548,1711103447164,-684.08,0.00027397,2]
[320037550,1711103447173,-5295.5,0.00027397,2]
[320037552,1711103447182,-500.0,0.00027397,2]
[320037554,1711103447192,-776.37,0.00027397,2]
[320037556,1711103447200,-500.0,0.00027397,2]
[320037558,1711103447210,-500.0,0.00027397,2]
[320037559,1711103447219,-667.27,0.00027397,2]
[320037561,1711103447228,-500.0,0.00027397,2]
[320037563,1711103447237,-1466.32,0.00027397,2]
[320037565,1711103447247,-500.0,0.00027397,2]
[320037567,1711103447257,-1577.14,0.00027397,2]
[320037569,1711103447266,-563.81,0.00027397,2]
[320037570,1711103447275,-500.0,0.00027397,2]
[320037571,1711103447284,-500.0,0.00027397,2]
[320037572,1711103447293,-501.69758102,0.00027397,2]
[320037573,1711103447302,-8479.19,0.00027397,2]
[320037574,1711103447311,-3191.4,0.00027397,2]
[320037575,1711103447320,-500.0,0.00027397,2]
[320037576,1711103447329,-500.0,0.00027397,2]
[320037577,1711103447339,-500.0,0.00027397,2]
[320037578,1711103447348,-1943.24,0.00027397,2]
[320037579,1711103447358,-604.03,0.00027397,2]
[320037580,1711103447367,-500.0,0.00027397,2]
[320037581,1711103447383,-500.0,0.00027397,2]
[320037582,1711103447392,-500.0,0.00027397,2]
[320037583,1711103447404,-500.0,0.00027397,2]
[320037584,1711103447413,-500.0,0.00027397,2]
[320037585,1711103447422,-1063.54,0.00027397,2]
[320037586,1711103447432,-502.19195385,0.00027397,2]
[320037587,1711103447441,-500.0,0.00027397,2]
[320037588,1711103447450,-500.0,0.00027397,2]
[320037589,1711103447459,-2566.69,0.00027397,2]
[320037590,1711103447468,-500.0,0.00027397,2]
[320037591,1711103447477,-2331.35,0.00027397,2]
[320037592,1711103447486,-500.0,0.00027397,2]
[320037593,1711103447495,-500.0,0.00027397,2]
[320037594,1711103447504,-500.0,0.00027397,2]
[320037595,1711103447513,-500.0,0.00027397,2]
[320037596,1711103447523,-500.0,0.00027397,2]
[320037597,1711103447533,-500.0,0.00027397,2]
[320037598,1711103447542,-500.0,0.00027397,2]
[320037599,1711103447551,-500.0,0.00027397,2]
[320037600,1711103447560,-500.0,0.00027397,2]
[320037601,1711103447570,-500.0,0.00027397,2]
[320037602,1711103447579,-500.0,0.00027397,2]
[320037603,1711103447588,-500.0,0.00027397,2]
[320037604,1711103447597,-500.0,0.00027397,2]
[320037605,1711103447606,-500.0,0.00027397,2]
[320037606,1711103447615,-500.0,0.00027397,2]
[320037607,1711103447627,-500.0,0.00027397,2]
[320037608,1711103447636,-500.0,0.00027397,2]
[320037609,1711103447645,-500.0,0.00027397,2]
[320037610,1711103447654,-500.0,0.00027397,2]
[320037611,1711103447664,-500.0,0.00027397,2]
[320037612,1711103447673,-500.0,0.00027397,2]
[320037613,1711103447683,-500.0,0.00027397,2]
[320037614,1711103447692,-500.0,0.00027397,2]
[320037615,1711103447701,-500.0,0.00027397,2]
[320037616,1711103447710,-500.0,0.00027397,2]
[320037617,1711103447720,-500.0,0.00027397,2]
[320037618,1711103447731,-500.0,0.00027397,2]
[320037619,1711103447741,-500.0,0.00027397,2]
[320037620,1711103447752,-500.0,0.00027397,2]
[320037621,1711103447764,-500.0,0.00027397,2]
[320037622,1711103447775,-500.0,0.00027397,2]
[320037623,1711103447786,-500.0,0.00027397,2]
[320037624,1711103447796,-500.0,0.00027397,2]
[320037625,1711103447807,-500.0,0.00027397,2]
[320037626,1711103447816,-500.0,0.00027397,2]
[320037627,1711103447825,-500.0,0.00027397,2]
[320037628,1711103447835,-500.0,0.00027397,2]
[320037629,1711103447844,-500.0,0.00027397,2]
[320037630,1711103447854,-500.0,0.00027397,2]
[320037631,1711103447863,-500.0,0.00027397,2]
[320037632,1711103447874,-500.0,0.00027397,2]
[320037633,1711103447884,-500.0,0.00027397,2]
[320037634,1711103447894,-500.0,0.00027397,2]
[320037635,1711103447903,-500.0,0.00027397,2]
[320037636,1711103447912,-500.0,0.00027397,2]
[320037637,1711103447921,-500.0,0.00027397,2]
[320037638,1711103447930,-500.0,0.00027397,2]
[320037639,1711103447940,-500.0,0.00027397,2]
[320037640,1711103447949,-500.0,0.00027397,2]
[320037641,1711103447958,-500.0,0.00027397,2]
[320037642,1711103447967,-500.0,0.00027397,2]
[320037643,1711103447976,-500.0,0.00027397,2]
[320037644,1711103447985,-500.0,0.00027397,2]
[320037645,1711103447994,-500.0,0.00027397,2]
[320037646,1711103448004,-500.0,0.00027397,2]
[320037647,1711103448013,-500.0,0.00027397,2]
[320037648,1711103448022,-500.0,0.00027397,2]
[320037649,1711103448031,-640.02559,0.00027397,2]
[320037650,1711103448043,-500.0,0.00027397,2]
[320037651,1711103448053,-500.0,0.00027397,2]
[320037652,1711103448062,-506.65243167,0.00027397,2]
[320037653,1711103448072,-500.0,0.00027397,2]
[320037654,1711103448082,-500.0,0.00027397,2]
[320037655,1711103448091,-500.0,0.00027397,2]
[320037656,1711103448100,-8532.96,0.00027397,2]
[320037657,1711103448109,-31159.3390389,0.00027397,2]
[320037669,1711104555213,-167.206906,0.00026107,2]
[320037670,1711104555237,-236.612321,0.00026293,2]
[320037671,1711104555257,-3387.3929899,0.00026293,2]
[320037672,1711104555277,-168.1053818,0.00026406,2]
[320037673,1711104561113,-1999.1581816,0.00025027,2]
[320037674,1711104600917,-500.0,0.00027397,30]
[320037737,1711104638067,-0.8418184,0.00025027,2]
[320037739,1711104638077,-14.2375312,0.00026406,2]
[320037741,1711104638087,-167.18653043,0.00027297,3]
[320037743,1711104638097,-235.88702099,0.00027297,2]
[320037744,1711104638107,-230.00709898,0.00027313,2]
[320037899,1711104640252,-2200.30561791,0.00027313,2]
[320037901,1711104640261,-1201.22022917,0.0002739,2]
[320037902,1711104640270,-774.83341104,0.00027395,2]
[320037904,1711104640280,-56.29118692,0.00027395,7]
[320037960,1711104643079,-340.87924195,0.00027395,7]
[320037961,1711104643089,-2743.60921632,0.00027396,2]
[320037962,1711104643099,-284.81077016,0.00027396,2]
[320037963,1711104643108,-500.0,0.00027396,2]
[320037964,1711104643117,-500.0,0.00027396,2]
[320037965,1711104643126,-500.0,0.00027396,2]
[320037966,1711104643135,-500.0,0.00027396,2]
[320037967,1711104643144,-500.0,0.00027396,2]
[320037968,1711104643154,-500.0,0.00027396,2]
[320037969,1711104643163,-500.0,0.00027396,2]
[320037970,1711104643173,-500.0,0.00027397,2]
[320037971,1711104643182,-500.0,0.00027397,2]
[320037972,1711104643192,-500.0,0.00027397,2]
[320037973,1711104643202,-500.0,0.00027397,2]
[320037975,1711104643211,-500.0,0.00027397,2]
[320037977,1711104643221,-500.0,0.00027397,2]
[320037978,1711104643231,-500.0,0.00027397,2]
[320037979,1711104643241,-500.0,0.00027397,2]
[320037980,1711104643250,-500.0,0.00027397,2]
[320037981,1711104643259,-500.0,0.00027397,2]
[320037982,1711104643269,-500.0,0.00027397,2]
[320037983,1711104643278,-500.0,0.00027397,2]
[320037984,1711104643287,-300.0,0.00027397,2]
[320037985,1711104643297,-500.0,0.00027397,2]
[320037986,1711104643306,-500.0,0.00027397,2]
[320037987,1711104643315,-500.0,0.00027397,2]
[320037988,1711104643324,-500.0,0.00027397,2]
[320037989,1711104643333,-500.0,0.00027397,2]
[320037990,1711104643343,-500.0,0.00027397,2]
[320037991,1711104643353,-500.0,0.00027397,2]
[320037992,1711104643366,-500.0,0.00027397,2]
[320037993,1711104643375,-500.0,0.00027397,2]
[320037994,1711104643384,-500.0,0.00027397,2]
[320037996,1711104643393,-504.24017625,0.00027397,2]
[320037997,1711104643404,-500.0,0.00027397,2]
[320037998,1711104643414,-500.0,0.00027397,2]
[320037999,1711104643423,-500.0,0.00027397,2]
[320038001,1711104643433,-500.0,0.00027397,2]
[320038003,1711104643444,-500.0,0.00027397,2]
[320038004,1711104643453,-744.21,0.00027397,2]
[320038006,1711104643462,-641.69283751,0.00027397,2]
[320038008,1711104643471,-221.21683314,0.00027397,2]
[320038010,1711104643480,-500.0,0.00027397,2]
[320038011,1711104643489,-500.0,0.00027397,2]
[320038013,1711104643498,-500.0,0.00027397,2]
[320038014,1711104643507,-250.0,0.00027397,2]
[320038015,1711104643517,-500.0,0.00027397,2]
[320038016,1711104643526,-500.0,0.00027397,2]
[320038017,1711104643536,-500.0,0.00027397,2]
[320038018,1711104643546,-500.0,0.00027397,2]
[320038019,1711104643555,-500.0,0.00027397,2]
[320038020,1711104643564,-646.72,0.00027397,2]
[320038021,1711104643573,-500.0,0.00027397,2]
[320038022,1711104643583,-556.97,0.00027397,2]
[320038023,1711104643593,-500.0,0.00027397,2]
[320038024,1711104643603,-587.23,0.00027397,2]
[320038025,1711104643614,-500.0,0.00027397,2]
[320038026,1711104643624,-500.0,0.00027397,2]
[320038027,1711104643633,-151.0,0.00027397,2]
[320038028,1711104643643,-500.0,0.00027397,2]
[320038029,1711104643652,-500.0,0.00027397,2]
[320038030,1711104643661,-500.37354689,0.00027397,2]
[320038031,1711104643671,-500.0,0.00027397,2]
[320038032,1711104643681,-500.0,0.00027397,2]
[320038033,1711104643691,-526.02,0.00027397,2]
[320038034,1711104643700,-500.0,0.00027397,2]
[320038035,1711104643710,-500.0,0.00027397,2]
[320038036,1711104643719,-500.0,0.00027397,2]
[320038037,1711104643729,-500.0,0.00027397,2]
[320038038,1711104643739,-500.0,0.00027397,2]
[320038039,1711104643750,-500.0,0.00027397,2]
[320038040,1711104643761,-500.0,0.00027397,2]
[320038041,1711104643770,-500.0,0.00027397,2]
[320038042,1711104643779,-500.0,0.00027397,2]
[320038043,1711104643788,-500.0,0.00027397,2]
[320038044,1711104643799,-501.82067766,0.00027397,2]
[320038045,1711104643810,-1037.53,0.00027397,2]
[320038046,1711104643820,-500.0,0.00027397,2]
[320038047,1711104643830,-500.0,0.00027397,2]
[320038048,1711104643839,-500.0,0.00027397,2]
[320038049,1711104643849,-194.48098306,0.00027397,2]
[320038050,1711104643859,-500.0,0.00027397,2]
[320038051,1711104643869,-500.0,0.00027397,2]
[320038052,1711104643879,-2660.54640134,0.00027397,2]
[320038053,1711104643894,-1106.47359866,0.00027397,2]
[320038054,1711104643903,-500.0,0.00027397,2]
[320038055,1711104643917,-500.0,0.00027397,2]
[320038056,1711104643927,-640.3,0.00027397,2]
[320038057,1711104643936,-778.25,0.00027397,2]
[320038058,1711104643945,-500.0,0.00027397,2]
[320038059,1711104643955,-999.56,0.00027397,2]
[320038060,1711104643964,-500.0,0.00027397,2]
[320038061,1711104643973,-500.0,0.00027397,2]
[320038062,1711104643982,-500.0,0.00027397,2]
[320038063,1711104643991,-500.0,0.00027397,2]
[320038064,1711104644000,-500.0,0.00027397,2]
[320038065,1711104644011,-500.0,0.00027397,2]
[320038066,1711104644021,-1287.63,0.00027397,2]
[320038067,1711104644030,-500.0,0.00027397,2]
[320038068,1711104644039,-500.0,0.00027397,2]
[320038069,1711104644049,-500.0,0.00027397,2]
[320038070,1711104644058,-500.0,0.00027397,2]
[320038071,1711104644067,-500.0,0.00027397,2]
[320038072,1711104644076,-500.0,0.00027397,2]
[320038073,1711104644085,-500.0,0.00027397,2]
[320038074,1711104644095,-500.0,0.00027397,2]
[320038075,1711104644104,-500.0,0.00027397,2]
[320038076,1711104644113,-500.0,0.00027397,2]
[320038077,1711104644122,-500.0,0.00027397,2]
[320038078,1711104644132,-500.0,0.00027397,2]
[320038079,1711104644142,-396.65777839,0.00027397,2]
[320038080,1711104644151,-500.0,0.00027397,2]
[320038081,1711104644160,-2234.21,0.00027397,2]
[320038082,1711104644170,-673.07,0.00027397,2]
[320038083,1711104644179,-151.0,0.00027397,2]
[320038084,1711104644189,-151.0,0.00027397,2]
[320038085,1711104644198,-151.0,0.00027397,2]
[320038086,1711104644207,-151.0,0.00027397,2]
[320038087,1711104644216,-579.78,0.00027397,2]
[320038088,1711104644225,-500.0,0.00027397,2]
[320038089,1711104644235,-653.67011463,0.00027397,2]
[320038090,1711104644253,-963.57988537,0.00027397,2]
[320038091,1711104644262,-52.15386584,0.00027397,2]
[320038144,1711104878868,187.79272859,0.0002104,15]
[320038145,1711104922246,8969.86297081,0.0002104,2]
[320038146,1711104938929,154.82968734,0.0002104,2]
[320038147,1711104950252,19047.25682146,0.0002104,2]
[320038148,1711104951100,155.23313949,0.0002104,2]
[320038149,1711104970253,19047.25682146,0.0002104,2]
[320038150,1711104990386,2437.76783085,0.0002104,2]
[320038161,1711105603675,1223.5386158,0.0002,2]
[320038162,1711105626315,-154.84515485,0.00021039,2]
[320038163,1711105626337,-533.99398688,0.0002104,2]
[320038165,1711105751138,-16082.12233041,0.0002104,2]
[320038166,1711105751159,-250.0,0.00025855,2]
[320038167,1711105751179,-187.16195734,0.00026121,2]
[320038168,1711105751200,-160.4874892,0.00026123,2]
[320038169,1711105751220,-522.35923874,0.00027,2]
[320038170,1711105763192,-1177.02659477,0.00027,2]
[320038171,1711105767136,-6067.93255017,0.00027,2]
[320038172,1711105772114,-1935.24031463,0.00027,2]
[320038291,1711105838165,-720.06925466,0.00025683,2]
[320038294,1711105838176,-1061.67916869,0.00027,2]
[320038299,1711105838189,-11885.27575119,0.00027,2]
[320038302,1711105838198,-19053.88414814,0.00027,2]
[320038304,1711105838207,-13599.8175277,0.000271,3]
[320038307,1711105838217,-5079.88695154,0.00027295,2]
[320038311,1711105838227,-154.87609912,0.00027295,2]
[320038314,1711105838236,-232.99241824,0.00027295,2]
[320038316,1711105838245,-154.87609912,0.00027295,2]
[320038318,1711105838255,-155.26353407,0.00027295,2]
[320038321,1711105838265,-341.23338938,0.00027296,2]
[320038324,1711105838275,-500.0,0.00027296,2]
[320038327,1711105838284,-462.04035488,0.00027296,2]
[320038329,1711105838293,-33469.52202606,0.00027297,2]
[320038332,1711105838304,-2111.83792118,0.00027297,2]
[320038334,1711105838315,-11016.74535603,0.00027297,2]
[320038337,1711105838331,-4524.04861442,0.00027297,2]
[320038339,1711105838342,-850.00014654,0.00027297,2]
[320038370,1711105840281,-464.2957886,0.00027297,2]
[320038371,1711105840293,-530.85949994,0.00027297,2]
[320038372,1711105840312,-9705.15,0.00027297,2]
[320038416,1711105846489,-158.49941414,0.00027295,2]
[320038417,1711105846498,-274.04408717,0.00027296,2]
[320038418,1711105846507,-154.84515485,0.00027296,2]
[320038419,1711105846516,-1919.09606837,0.00027296,2]
[320038420,1711105846526,-155.47646184,0.00027296,2]
[320038421,1711105846535,-500.0,0.00027296,2]
[320038422,1711105846545,-160.35110672,0.00027296,2]
[320038423,1711105846554,-154.8915759,0.00027296,2]
[320038424,1711105846563,-261.63755361,0.00027296,2]
[320038425,1711105846572,-154.93802479,0.00027296,2]
[320038426,1711105846581,-28758.53536763,0.00027297,2]
[320038427,1711105846593,-8803.26823232,0.00027297,2]
[320038428,1711105853742,155.32900858,0.0002675,2]
[320038429,1711105888377,187.32257474,0.00025583,2]
[320038430,1711105890879,1570.86584187,0.0002675,2]
[320038436,1711106218701,385.36905955,0.00025676,30]
[320038486,1711106786863,-154.86062544,0.00021196,2]
[320038487,1711106786886,-3506.11948002,0.00021196,2]
[320038488,1711106786906,-154.86062544,0.00021197,2]
[320038489,1711106786928,-3441.48938515,0.00021197,2]
[320038490,1711106786949,-212.49126389,0.00021197,2]
[320038491,1711106786974,-784.17862143,0.00021198,2]
[320038492,1711106786999,-332.21662167,0.00021198,2]
[320038493,1711106787021,-217.78337696,0.00021205,2]
[320038494,1711106822886,250.0,0.000205,2]
[320038495,1711106894065,19053.88414814,0.000205,2]
[320038496,1711106907989,5696.11585186,0.000205,2]
[320038497,1711106908025,5136.42381711,0.000205,2]
[320038498,1711106924772,166.6861673,0.00019,2]
[320038499,1711106951808,195.0010941,0.00020345,2]
[320038500,1711106955198,-1043.75206081,0.000211,2]
[320038501,1711106955218,-784.17862143,0.00021101,2]
[320038502,1711106955237,-412.62630958,0.00021102,2]
[320038503,1711106955256,-3506.11948002,0.00021102,2]
[320038504,1711106955275,-164.2191492,0.00021106,2]
[320038505,1711106955296,-230.28863091,0.00021106,2]
[320038506,1711106955316,-160.75398886,0.00021201,2]
[320038507,1711106955336,-255.44932696,0.00021203,2]
[320038508,1711106955356,-278.58534379,0.00021203,2]
[320038509,1711106955375,-1126.82064947,0.00021203,2]
[320038510,1711106955394,-155.08976264,0.00021203,2]
[320038511,1711106955413,-302.25617655,0.00021204,2]
[320038512,1711106955432,-333.24558535,0.00021204,2]
[320038513,1711106955452,-2002.31207968,0.00021204,2]
[320038514,1711106955470,-208.73581983,0.00021204,2]
[320038515,1711106955489,-486.71743847,0.00021205,2]
[320038516,1711106955509,-445.28611643,0.00021205,2]
[320038517,1711106955527,-500.0,0.00021205,2]
[320038518,1711106955546,-397.44869101,0.00021205,2]
[320038519,1711106955565,-47756.35197388,0.00021205,2]
[320038520,1711106955584,-11866.69479513,0.00021206,2]
[320038521,1711106956138,-2812.35627457,0.00021206,2]
[320038522,1711106956157,-1172.8410609,0.00021814,2]
[320038523,1711106956177,-876.88094129,0.00022172,2]
[320038524,1711106956197,-24900.0,0.00022174,2]
[320038525,1711106956217,-880.135863,0.00022226,2]
[320038526,1711106956236,-729.60391217,0.00022245,2]
[320038527,1711106956255,-230.28863089,0.00022555,2]
[320038528,1711106956275,-625.48019561,0.00023357,2]
[320038529,1711106956294,-158.14912,0.00023762,2]
[320038530,1711106956314,-230.28863089,0.00024003,2]
[320038531,1711106956333,-1828.58151229,0.00025197,2]
[320038532,1711106956352,-500.0,0.0002537,5]
[320038533,1711106956373,-5892.31223016,0.00025381,2]
[320038534,1711106956392,-230.28863089,0.00025452,2]
[320038535,1711106956412,-3647.697455,0.000255,30]
[320038536,1711106956444,-2000.0,0.00025584,2]
[320038537,1711106956471,-500.0,0.00026,5]
[320038538,1711106956496,-1143.0,0.00026,120]
[320038539,1711106956524,-153.0,0.00026341,2]
[320038540,1711106956552,-153.0,0.00026341,2]
[320038541,1711106956575,-153.0,0.00026341,2]
[320038542,1711106956602,-153.0,0.00026341,2]
[320038543,1711106956629,-5169.56205362,0.00026483,2]
[320038544,1711106956657,-306.0,0.00026575,2]
[320038545,1711106956684,-201.8484782,0.00026575,2]
[320038546,1711106956711,-201.7174259,0.00026575,2]
[320038547,1711106956739,-153.0,0.00026575,2]
[320038548,1711106956766,-153.0,0.00026575,2]
[320038549,1711106956792,-153.0,0.00026575,2]
[320038550,1711106956822,-153.0,0.00026578,2]
[320038551,1711106956848,-306.0,0.0002674,2]
[320038552,1711106956872,-153.0,0.0002674,2]
[320038553,1711106956897,-153.0,0.0002674,2]
[320038554,1711106956924,-153.0,0.0002674,2]
[320038555,1711106956949,-403.6532723,0.0002674,2]
[320038556,1711106956973,-153.0,0.0002674,2]
[320038557,1711106956999,-153.0,0.0002674,2]
[320038558,1711106957023,-153.0,0.0002674,2]
[320038559,1711106957048,-153.0,0.0002674,2]
[320038560,1711106957078,-153.0,0.0002674,2]
[320038561,1711106957102,-328.0742388,0.0002674,2]
[320038562,1711106957127,-153.0,0.0002674,2]
[320038563,1711106957153,-165.97839737,0.00026747,2]
[320038564,1711106957177,-302.50783156,0.00026747,2]
[320038565,1711106957200,-241.59521397,0.00026747,2]
[320038566,1711106957225,-303.58353417,0.00026747,2]
[320038567,1711106957248,-217.09563973,0.0002675,2]
[320038568,1711106957272,-153.0,0.00026778,2]
[320038569,1711106957296,-153.0,0.00026778,2]
[320038570,1711106957320,-2000.0,0.0002688,2]
[320038571,1711106957344,-174764.47713513,0.000269,2]
[320038572,1711106957369,-230.28863089,0.000269,2]
[320038573,1711106957395,-155.24445935,0.00027,2]
[320038574,1711106957419,-15865.95775027,0.00027,2]
[320038575,1711106957443,-14200.32726653,0.00027,2]
[320038576,1711106957481,-3910.85190319,0.00027,2]
[320038577,1711106957504,-500.0,0.00027,5]
[320038578,1711106957528,-151.0,0.00027,2]
[320038579,1711106957552,-151.0,0.00027,2]
[320038580,1711106957576,-151.0,0.00027,2]
[320038581,1711106958968,2000.0,0.00024625,2]
[320038582,1711106966945,1042.74488025,0.00025673,2]
[320038583,1711106967225,496.60167194,0.00025673,2]
[320038584,1711107008275,1269.05434153,0.000248,2]
[320038585,1711107008425,69797.47029441,0.000268,2]
[320038586,1711107008448,6314.30145946,0.000268,2]
[320038644,1711107032485,-403.5731953,0.00025669,2]
[320038645,1711107032494,-5012.74688021,0.000268,2]
[320038650,1711107032504,-683.2104041,0.00027294,2]
[320038652,1711107032514,-1758.15076347,0.00027294,2]
[320038655,1711107032523,-187.57184153,0.00027295,2]
[320038658,1711107032533,-1899.72787318,0.00027296,2]
[320038660,1711107032543,-3165.27704134,0.00027296,2]
[320038664,1711107032552,-212.4641174,0.00027296,2]
[320038667,1711107032563,-155.21221624,0.00027296,2]
[320038671,1711107032573,-271.10287494,0.00027296,2]
[320038674,1711107032582,-154.87609912,0.00027296,2]
[320038677,1711107032592,-155.08021695,0.00027296,2]
[320038679,1711107032601,-154.87609912,0.00027296,2]
[320038680,1711107032611,-500.0,0.00027296,2]
[320038682,1711107032621,-500.0,0.00027296,2]
[320038685,1711107032631,-500.0,0.00027296,2]
[320038687,1711107032640,-500.0,0.00027296,2]
[320038688,1711107032650,-500.0,0.00027296,2]
[320038690,1711107032659,-500.0,0.00027296,2]
[320038692,1711107032671,-500.0,0.00027296,2]